Workbook

Sheet P(1an) (hidden)
A1: Create Data Validation in cells B3 and B4 to create a drop down list. Then add conditional formatting to highlight the Year column, Product row and intersecting cell in the table so that as you change the values in cell B3 and B4 the conditional formatting will change..
A3: Product | B3: Pro 4
A4: Year | B4: 2005
B6: 2000 | C6: 2001 | D6: 2002 | E6: 2003 | F6: 2004 | G6: 2005 | H6: 2006 | I6: 2007
A7: Pro 1 | B7: 148546 | C7: 145260 | D7: 126372 | E7: 135607 | F7: 129679 | G7: 111892 | H7: 100470 | I7: 111901
A8: Pro 2 | B8: 135646 | C8: 96682 | D8: 150431 | E8: 141223 | F8: 142200 | G8: 124103 | H8: 80135 | I8: 151251
A9: Pro 3 | B9: 108400 | C9: 94271 | D9: 158998 | E9: 90988 | F9: 155191 | G9: 150893 | H9: 90387 | I9: 156265
A10: Pro 4 | B10: 118815 | C10: 91538 | D10: 146520 | E10: 80756 | F10: 148281 | G10: 81459 | H10: 122481 | I10: 148958
A11: Pro 5 | B11: 85537 | C11: 144842 | D11: 155701 | E11: 127578 | F11: 141733 | G11: 159043 | H11: 147788 | I11: 111986
A12: Pro 6 | B12: 80333 | C12: 119081 | D12: 130797 | E12: 120655 | F12: 131298 | G12: 127321 | H12: 142540 | I12: 156891
A13: Pro 7 | B13: 100767 | C13: 147611 | D13: 103388 | E13: 108541 | F13: 104562 | G13: 143196 | H13: 146959 | I13: 89273
A14: Pro 8 | B14: 136596 | C14: 93202 | D14: 129286 | E14: 97946 | F14: 139244 | G14: 125708 | H14: 121492 | I14: 98550
A15: Pro 9 | B15: 100584 | C15: 119456 | D15: 159582 | E15: 141626 | F15: 155847 | G15: 89087 | H15: 93680 | I15: 136835
A16: Pro 10 | B16: 84500 | C16: 95228 | D16: 153251 | E16: 124015 | F16: 84391 | G16: 159122 | H16: 154183 | I16: 98852
A17: Pro 11 | B17: 152229 | C17: 116764 | D17: 155102 | E17: 147374 | F17: 127889 | G17: 123911 | H17: 118891 | I17: 148613
A18: Pro 12 | B18: 158323 | C18: 132992 | D18: 108734 | E18: 86834 | F18: 128842 | G18: 85926 | H18: 128578 | I18: 80408
A19: Pro 13 | B19: 97946 | C19: 94548 | D19: 134937 | E19: 137324 | F19: 87869 | G19: 124531 | H19: 143985 | I19: 84303
A20: Pro 14 | B20: 85431 | C20: 91944 | D20: 86687 | E20: 81169 | F20: 125446 | G20: 154327 | H20: 152973 | I20: 109150

Sheet P(1)
A1: Create Data Validation in cells B3 and B4 to create a drop down list. Then add conditional formatting to highlight the Year column, Product row and intersecting cell in the table so that as you change the values in cell B3 and B4 the conditional formatting will change..
A3: Product
A4: Year
B6: 2000 | C6: 2001 | D6: 2002 | E6: 2003 | F6: 2004 | G6: 2005 | H6: 2006 | I6: 2007
A7: Pro 1 | B7: 148546 | C7: 145260 | D7: 126372 | E7: 135607 | F7: 129679 | G7: 111892 | H7: 100470 | I7: 111901
A8: Pro 2 | B8: 135646 | C8: 96682 | D8: 150431 | E8: 141223 | F8: 142200 | G8: 124103 | H8: 80135 | I8: 151251
A9: Pro 3 | B9: 108400 | C9: 94271 | D9: 158998 | E9: 90988 | F9: 155191 | G9: 150893 | H9: 90387 | I9: 156265
A10: Pro 4 | B10: 118815 | C10: 91538 | D10: 146520 | E10: 80756 | F10: 148281 | G10: 81459 | H10: 122481 | I10: 148958
A11: Pro 5 | B11: 85537 | C11: 144842 | D11: 155701 | E11: 127578 | F11: 141733 | G11: 159043 | H11: 147788 | I11: 111986
A12: Pro 6 | B12: 80333 | C12: 119081 | D12: 130797 | E12: 120655 | F12: 131298 | G12: 127321 | H12: 142540 | I12: 156891
A13: Pro 7 | B13: 100767 | C13: 147611 | D13: 103388 | E13: 108541 | F13: 104562 | G13: 143196 | H13: 146959 | I13: 89273
A14: Pro 8 | B14: 136596 | C14: 93202 | D14: 129286 | E14: 97946 | F14: 139244 | G14: 125708 | H14: 121492 | I14: 98550
A15: Pro 9 | B15: 100584 | C15: 119456 | D15: 159582 | E15: 141626 | F15: 155847 | G15: 89087 | H15: 93680 | I15: 136835
A16: Pro 10 | B16: 84500 | C16: 95228 | D16: 153251 | E16: 124015 | F16: 84391 | G16: 159122 | H16: 154183 | I16: 98852
A17: Pro 11 | B17: 152229 | C17: 116764 | D17: 155102 | E17: 147374 | F17: 127889 | G17: 123911 | H17: 118891 | I17: 148613
A18: Pro 12 | B18: 158323 | C18: 132992 | D18: 108734 | E18: 86834 | F18: 128842 | G18: 85926 | H18: 128578 | I18: 80408
A19: Pro 13 | B19: 97946 | C19: 94548 | D19: 134937 | E19: 137324 | F19: 87869 | G19: 124531 | H19: 143985 | I19: 84303
A20: Pro 14 | B20: 85431 | C20: 91944 | D20: 86687 | E20: 81169 | F20: 125446 | G20: 154327 | H20: 152973 | I20: 109150

Sheet P(2)
A1: Add Conditional Formatting to highlight the 5 largest values.
B3: 2000 | C3: 2001 | D3: 2002 | E3: 2003 | F3: 2004 | G3: 2005 | H3: 2006 | I3: 2007
A4: Pro 1 | B4: 148546 | C4: 145260 | D4: 126372 | E4: 135607 | F4: 129679 | G4: 111892 | H4: 100470 | I4: 111901
A5: Pro 2 | B5: 135646 | C5: 96682 | D5: 150431 | E5: 141223 | F5: 142200 | G5: 124103 | H5: 80135 | I5: 151251
A6: Pro 3 | B6: 108400 | C6: 94271 | D6: 158998 | E6: 90988 | F6: 155191 | G6: 150893 | H6: 90387 | I6: 156265
A7: Pro 4 | B7: 118815 | C7: 91538 | D7: 146520 | E7: 80756 | F7: 148281 | G7: 81459 | H7: 122481 | I7: 148958
A8: Pro 5 | B8: 85537 | C8: 144842 | D8: 155701 | E8: 127578 | F8: 141733 | G8: 159043 | H8: 147788 | I8: 111986
A9: Pro 6 | B9: 80333 | C9: 119081 | D9: 130797 | E9: 120655 | F9: 131298 | G9: 127321 | H9: 142540 | I9: 156891
A10: Pro 7 | B10: 100767 | C10: 147611 | D10: 103388 | E10: 108541 | F10: 104562 | G10: 143196 | H10: 146959 | I10: 89273
A11: Pro 8 | B11: 136596 | C11: 93202 | D11: 129286 | E11: 97946 | F11: 139244 | G11: 125708 | H11: 121492 | I11: 98550
A12: Pro 9 | B12: 100584 | C12: 119456 | D12: 159582 | E12: 141626 | F12: 155847 | G12: 89087 | H12: 93680 | I12: 136835
A13: Pro 10 | B13: 84500 | C13: 95228 | D13: 153251 | E13: 124015 | F13: 84391 | G13: 159122 | H13: 154183 | I13: 98852
A14: Pro 11 | B14: 152229 | C14: 116764 | D14: 155102 | E14: 147374 | F14: 127889 | G14: 123911 | H14: 118891 | I14: 148613
A15: Pro 12 | B15: 158323 | C15: 132992 | D15: 108734 | E15: 86834 | F15: 128842 | G15: 85926 | H15: 128578 | I15: 80408
A16: Pro 13 | B16: 97946 | C16: 94548 | D16: 134937 | E16: 137324 | F16: 87869 | G16: 124531 | H16: 143985 | I16: 84303
A17: Pro 14 | B17: 85431 | C17: 91944 | D17: 86687 | E17: 81169 | F17: 125446 | G17: 154327 | H17: 152973 | I17: 109150

Sheet P(2an) (hidden)
A1: Add Conditional Formatting to highlight the 5 largest values.
B3: 2000 | C3: 2001 | D3: 2002 | E3: 2003 | F3: 2004 | G3: 2005 | H3: 2006 | I3: 2007 | K3: Large? | M3: List
A4: Pro 1 | B4: 148546 | C4: 145260 | D4: 126372 | E4: 135607 | F4: 129679 | G4: 111892 | H4: 100470 | I4: 111901 | K4: 5 | M4: =IF(ROWS(M$4:M4)>K$4,"",LARGE($B$4:$I$17,ROWS(M$4:M4))) -> 159582
A5: Pro 2 | B5: 135646 | C5: 96682 | D5: 150431 | E5: 141223 | F5: 142200 | G5: 124103 | H5: 80135 | I5: 151251 | M5: =IF(ROWS(M$4:M5)>K$4,"",LARGE($B$4:$I$17,ROWS(M$4:M5))) -> 159122
A6: Pro 3 | B6: 108400 | C6: 94271 | D6: 158998 | E6: 90988 | F6: 155191 | G6: 150893 | H6: 90387 | I6: 156265 | M6: =IF(ROWS(M$4:M6)>K$4,"",LARGE($B$4:$I$17,ROWS(M$4:M6))) -> 159043
A7: Pro 4 | B7: 118815 | C7: 91538 | D7: 146520 | E7: 80756 | F7: 148281 | G7: 81459 | H7: 122481 | I7: 148958 | M7: =IF(ROWS(M$4:M7)>K$4,"",LARGE($B$4:$I$17,ROWS(M$4:M7))) -> 158998
A8: Pro 5 | B8: 85537 | C8: 144842 | D8: 155701 | E8: 127578 | F8: 141733 | G8: 159043 | H8: 147788 | I8: 111986 | M8: =IF(ROWS(M$4:M8)>K$4,"",LARGE($B$4:$I$17,ROWS(M$4:M8))) -> 158323
A9: Pro 6 | B9: 80333 | C9: 119081 | D9: 130797 | E9: 120655 | F9: 131298 | G9: 127321 | H9: 142540 | I9: 156891 | M9: =IF(ROWS(M$4:M9)>K$4,"",LARGE($B$4:$I$17,ROWS(M$4:M9))) -> 
A10: Pro 7 | B10: 100767 | C10: 147611 | D10: 103388 | E10: 108541 | F10: 104562 | G10: 143196 | H10: 146959 | I10: 89273 | M10: =IF(ROWS(M$4:M10)>K$4,"",LARGE($B$4:$I$17,ROWS(M$4:M10))) -> 
A11: Pro 8 | B11: 136596 | C11: 93202 | D11: 129286 | E11: 97946 | F11: 139244 | G11: 125708 | H11: 121492 | I11: 98550 | M11: =IF(ROWS(M$4:M11)>K$4,"",LARGE($B$4:$I$17,ROWS(M$4:M11))) -> 
A12: Pro 9 | B12: 100584 | C12: 119456 | D12: 159582 | E12: 141626 | F12: 155847 | G12: 89087 | H12: 93680 | I12: 136835 | M12: =IF(ROWS(M$4:M12)>K$4,"",LARGE($B$4:$I$17,ROWS(M$4:M12))) -> 
A13: Pro 10 | B13: 84500 | C13: 95228 | D13: 153251 | E13: 124015 | F13: 84391 | G13: 159122 | H13: 154183 | I13: 98852 | M13: =IF(ROWS(M$4:M13)>K$4,"",LARGE($B$4:$I$17,ROWS(M$4:M13))) -> 
A14: Pro 11 | B14: 152229 | C14: 116764 | D14: 155102 | E14: 147374 | F14: 127889 | G14: 123911 | H14: 118891 | I14: 148613 | M14: =IF(ROWS(M$4:M14)>K$4,"",LARGE($B$4:$I$17,ROWS(M$4:M14))) -> 
A15: Pro 12 | B15: 158323 | C15: 132992 | D15: 108734 | E15: 86834 | F15: 128842 | G15: 85926 | H15: 128578 | I15: 80408 | M15: =IF(ROWS(M$4:M15)>K$4,"",LARGE($B$4:$I$17,ROWS(M$4:M15))) -> 
A16: Pro 13 | B16: 97946 | C16: 94548 | D16: 134937 | E16: 137324 | F16: 87869 | G16: 124531 | H16: 143985 | I16: 84303
A17: Pro 14 | B17: 85431 | C17: 91944 | D17: 86687 | E17: 81169 | F17: 125446 | G17: 154327 | H17: 152973 | I17: 109150

Sheet P(3)
A1: Add Conditional Formatting to highlight duplicate values.
B3: 2000 | C3: 2001 | D3: 2002 | E3: 2003 | F3: 2004 | G3: 2005 | H3: 2006 | I3: 2007
A4: Pro 1 | B4: 148546 | C4: 145260 | D4: 126372 | E4: 135607 | F4: 129679 | G4: 111892 | H4: 100470 | I4: 111901
A5: Pro 2 | B5: 135646 | C5: 96682 | D5: 150431 | E5: 141223 | F5: 142200 | G5: 124103 | H5: 80135 | I5: 151251
A6: Pro 3 | B6: 108400 | C6: 94271 | D6: 158998 | E6: 90988 | F6: 155191 | G6: 150893 | H6: 90387 | I6: 156265
A7: Pro 4 | B7: 118815 | C7: 91538 | D7: 146520 | E7: 80756 | F7: 148281 | G7: 81459 | H7: 122481 | I7: 148958
A8: Pro 5 | B8: 85537 | C8: 144842 | D8: 155701 | E8: 127578 | F8: 141733 | G8: 159043 | H8: 147788 | I8: 111986
A9: Pro 6 | B9: 80333 | C9: 119081 | D9: 130797 | E9: 120655 | F9: 131298 | G9: 127321 | H9: 142540 | I9: 156891
A10: Pro 7 | B10: 100767 | C10: 147611 | D10: 103388 | E10: 108541 | F10: 104562 | G10: 143196 | H10: 146959 | I10: 89273
A11: Pro 8 | B11: 136596 | C11: 93202 | D11: 129286 | E11: 97946 | F11: 139244 | G11: 125708 | H11: 121492 | I11: 98550
A12: Pro 9 | B12: 100584 | C12: 119456 | D12: 159582 | E12: 141626 | F12: 155847 | G12: 89087 | H12: 93680 | I12: 136835
A13: Pro 10 | B13: 84500 | C13: 95228 | D13: 153251 | E13: 124015 | F13: 84391 | G13: 159122 | H13: 154183 | I13: 98852
A14: Pro 11 | B14: 152229 | C14: 116764 | D14: 155102 | E14: 147374 | F14: 127889 | G14: 123911 | H14: 118891 | I14: 148613
A15: Pro 12 | B15: 158323 | C15: 132992 | D15: =I6 -> 156265 | E15: 86834 | F15: 128842 | G15: 85926 | H15: 128578 | I15: 80408
A16: Pro 13 | B16: 97946 | C16: 94548 | D16: 134937 | E16: 137324 | F16: 87869 | G16: 124531 | H16: 143985 | I16: =C8 -> 144842
A17: Pro 14 | B17: 85431 | C17: 91944 | D17: 86687 | E17: 81169 | F17: 125446 | G17: 154327 | H17: 152973 | I17: 109150

Sheet P(3an) (hidden)
A1: Add Conditional Formatting to highlight duplicate values.
B3: 2000 | C3: 2001 | D3: 2002 | E3: 2003 | F3: 2004 | G3: 2005 | H3: 2006 | I3: 2007
A4: Pro 1 | B4: 148546 | C4: 145260 | D4: 126372 | E4: 135607 | F4: 129679 | G4: 111892 | H4: 100470 | I4: 111901
A5: Pro 2 | B5: 135646 | C5: 96682 | D5: 150431 | E5: 141223 | F5: 142200 | G5: 124103 | H5: 80135 | I5: 151251
A6: Pro 3 | B6: 108400 | C6: 94271 | D6: 158998 | E6: 90988 | F6: 155191 | G6: 150893 | H6: 90387 | I6: 156265
A7: Pro 4 | B7: 118815 | C7: 91538 | D7: 146520 | E7: 80756 | F7: 148281 | G7: 81459 | H7: 122481 | I7: 148958
A8: Pro 5 | B8: 85537 | C8: 144842 | D8: 155701 | E8: 127578 | F8: 141733 | G8: 159043 | H8: 147788 | I8: 111986
A9: Pro 6 | B9: 80333 | C9: 119081 | D9: 130797 | E9: 120655 | F9: 131298 | G9: 127321 | H9: 142540 | I9: 156891
A10: Pro 7 | B10: 100767 | C10: 147611 | D10: 103388 | E10: 108541 | F10: 104562 | G10: 143196 | H10: 146959 | I10: 89273
A11: Pro 8 | B11: 136596 | C11: 93202 | D11: 129286 | E11: 97946 | F11: 139244 | G11: 125708 | H11: 121492 | I11: 98550
A12: Pro 9 | B12: 100584 | C12: 119456 | D12: 159582 | E12: 141626 | F12: 155847 | G12: 89087 | H12: 93680 | I12: 136835
A13: Pro 10 | B13: 84500 | C13: 95228 | D13: 153251 | E13: 124015 | F13: 84391 | G13: 159122 | H13: 154183 | I13: 98852
A14: Pro 11 | B14: 152229 | C14: 116764 | D14: 155102 | E14: 147374 | F14: 127889 | G14: 123911 | H14: 118891 | I14: 148613
A15: Pro 12 | B15: 158323 | C15: 132992 | D15: =I6 -> 156265 | E15: 86834 | F15: 128842 | G15: 85926 | H15: 128578 | I15: 80408
A16: Pro 13 | B16: 97946 | C16: 94548 | D16: 134937 | E16: 137324 | F16: 87869 | G16: 124531 | H16: 143985 | I16: =C8 -> 144842
A17: Pro 14 | B17: 85431 | C17: 91944 | D17: 86687 | E17: 81169 | F17: 125446 | G17: 154327 | H17: 152973 | I17: 109150

Sheet P(4)
A1: Create a unique list of SalesRep. Then add a COUNTIFS function that will count how many sales each SalesRep had above $150.
A3: SalesRep | B3: Sales
A4: Denise | B4: 111
A5: Thongtara | B5: 167
A6: Sykes | B6: 191
A7: Ewelina | B7: 110
A8: Janita | B8: 146
A9: Elain | B9: 177
A10: Gianna | B10: 137
A11: Richard | B11: 116
A12: Elain | B12: 166
A13: Michael | B13: 193
A14: Ewelina | B14: 105
A15: Michelle | B15: 189
A16: Jason | B16: 122
A17: Craig | B17: 196
A18: Sarah | B18: 161
A19: Mansa | B19: 197
A20: Michelle | B20: 113
A21: Shari | B21: 111
A22: Richard | B22: 164
A23: Christina | B23: 167
A24: Denise | B24: 129
A25: Richard | B25: 122
A26: Thongtara | B26: 132
A27: Michelle | B27: 178
A28: Michelle | B28: 199
A29: Shari | B29: 181
A30: Carol | B30: 110
A31: Kaur | B31: 104
A32: Mitchell | B32: 110
A33: Debra | B33: 185
A34: Manavbir | B34: 183
A35: Sykes | B35: 143
A36: Elain | B36: 120
A37: Michelle | B37: 147
A38: Jason | B38: 117
A39: Mansa | B39: 128
A40: Shari | B40: 110
A41: Kaur | B41: 158
A42: Manavbir | B42: 133
A43: Debra | B43: 190
A44: Sarah | B44: 138
A45: Daniel | B45: 143
A46: Manavbir | B46: 167
A47: Thongtara | B47: 135
A48: Carol | B48: 125
A49: Janita | B49: 107
A50: Carol | B50: 162
A51: Thongtara | B51: 192
A52: Daniel | B52: 152
A53: Gianna | B53: 155
A54: Kaur | B54: 155
A55: Mansa | B55: 145
A56: Janita | B56: 149
A57: Kaur | B57: 180
A58: Yla-Katrina | B58: 190
A59: Richard | B59: 127
A60: Christina | B60: 114
A61: Carol | B61: 191
A62: Sykes | B62: 197
A63: Sykes | B63: 186
A64: Gianna | B64: 174
A65: Yla-Katrina | B65: 114
A66: Jason | B66: 121
A67: Debra | B67: 134
A68: Carol | B68: 174
A69: Craig | B69: 178
A70: Ewelina | B70: 132
A71: Sarah | B71: 148
A72: Michelle | B72: 120
A73: Thongtara | B73: 199
A74: Michelle | B74: 109
A75: Gianna | B75: 138
A76: Thongtara | B76: 153
A77: Janita | B77: 122
A78: Michael | B78: 154
A79: Jason | B79: 174
A80: Denise | B80: 181
A81: Sarah | B81: 113
A82: Nelia | B82: 177
A83: Mitchell | B83: 138
A84: Denise | B84: 175
A85: Ewelina | B85: 149
A86: Shari | B86: 140
A87: Michelle | B87: 152
A88: Jason | B88: 104
A89: Daniel | B89: 116
A90: Sykes | B90: 131
A91: Thongtara | B91: 135
A92: Michelle | B92: 164
A93: Manavbir | B93: 178
A94: Debra | B94: 139
A95: Carol | B95: 160
A96: Ewelina | B96: 162
A97: Shari | B97: 103
A98: Kaur | B98: 200
A99: Mansa | B99: 132
A100: Sarah | B100: 133
A101: Mansa | B101: 187
A102: Michael | B102: 173
A103: Sykes | B103: 112
A104: Daniel | B104: 132
A105: Sykes | B105: 112
A106: Daniel | B106: 131
A107: Craig | B107: 175
A108: Craig | B108: 158
A109: Ewelina | B109: 148
A110: Daniel | B110: 187
A111: Mansa | B111: 168
A112: Nelia | B112: 116
A113: Jason | B113: 122
A114: Debra | B114: 160
A115: Debra | B115: 192
A116: Christina | B116: 154
A117: Jason | B117: 145
A118: Richard | B118: 178
A119: Sarah | B119: 112
A120: Elain | B120: 115
A121: Mansa | B121: 146
A122: Debra | B122: 109
A123: Denise | B123: 172
A124: Daniel | B124: 146
A125: Richard | B125: 144
A126: Mitchell | B126: 146
A127: Kaur | B127: 105
A128: Ewelina | B128: 134
A129: Richard | B129: 118
A130: Debra | B130: 132
A131: Carol | B131: 117
A132: Michelle | B132: 194
A133: Debra | B133: 122
A134: Michelle | B134: 134
A135: Sykes | B135: 134
A136: Elain | B136: 125
A137: Carol | B137: 115
A138: Christina | B138: 105
A139: Christina | B139: 179
A140: Elain | B140: 114
A141: Elain | B141: 176
A142: Shari | B142: 194
A143: Mitchell | B143: 170
A144: Ewelina | B144: 144
A145: Christina | B145: 175
A146: Michelle | B146: 185
A147: Carol | B147: 133
A148: Sarah | B148: 131
A149: Mansa | B149: 163
A150: Denise | B150: 120
A151: Manavbir | B151: 136
A152: Gianna | B152: 195
A153: Yla-Katrina | B153: 157
A154: Michelle | B154: 187
A155: Christina | B155: 185
A156: Jason | B156: 154
A157: Jason | B157: 187
A158: Gianna | B158: 142
A159: Denise | B159: 132
A160: Mitchell | B160: 127
A161: Mansa | B161: 184
A162: Thongtara | B162: 164
A163: Sykes | B163: 157
A164: Craig | B164: 186
A165: Elain | B165: 135
A166: Janita | B166: 194
A167: Thongtara | B167: 177
A168: Mitchell | B168: 143
A169: Manavbir | B169: 152
A170: Nelia | B170: 101
A171: Janita | B171: 110
A172: Denise | B172: 124
A173: Christina | B173: 102
A174: Richard | B174: 139
A175: Janita | B175: 152
A176: Janita | B176: 168
A177: Michael | B177: 151
A178: Gianna | B178: 137
A179: Janita | B179: 104
A180: Nelia | B180: 139
A181: Daniel | B181: 147
A182: Mansa | B182: 190
A183: Nelia | B183: 159
A184: Manavbir | B184: 112
A185: Christina | B185: 182
A186: Richard | B186: 121
A187: Kaur | B187: 181
A188: Craig | B188: 104
A189: Sykes | B189: 194
A190: Christina | B190: 178
A191: Carol | B191: 142
A192: Mitchell | B192: 191
A193: Sarah | B193: 120
A194: Carol | B194: 155
A195: Manavbir | B195: 199
A196: Thongtara | B196: 106
A197: Elain | B197: 149
A198: Michelle | B198: 158
A199: Gianna | B199: 144
A200: Daniel | B200: 143
A201: Daniel | B201: 177
... 569 more rows

Sheet P(4an) (hidden)
A1: Create a unique list of SalesRep. Then add a COUNTIFS function that will count how many sales each SalesRep had above $150.
A3: SalesRep | B3: Sales | D3: SalesRep | E3: Count | G3: Hurdle | I3: check
A4: Denise | B4: 111 | D4: Denise | E4: =COUNTIFS($A$4:$A$770,D4,$B$4:$B$770,">"&G$4) -> 18 | G4: 150 | I4: =SUMPRODUCT(--($A$4:$A$770=D4),--($B$4:$B$770>G$4)) -> 18
A5: Thongtara | B5: 167 | D5: Thongtara | E5: 20 | I5: =SUMPRODUCT(--($A$4:$A$770=D5),--($B$4:$B$770>G$4)) -> 20
A6: Sykes | B6: 191 | D6: Sykes | E6: 15 | I6: 15
A7: Ewelina | B7: 110 | D7: Ewelina | E7: 17 | I7: 17
A8: Janita | B8: 146 | D8: Janita | E8: 10 | I8: 10
A9: Elain | B9: 177 | D9: Elain | E9: 16 | I9: 16
A10: Gianna | B10: 137 | D10: Gianna | E10: 9 | I10: 9
A11: Richard | B11: 116 | D11: Richard | E11: 12 | I11: 12
A12: Elain | B12: 166 | D12: Michael | E12: 21 | I12: 21
A13: Michael | B13: 193 | D13: Michelle | E13: 16 | I13: 16
A14: Ewelina | B14: 105 | D14: Jason | E14: 20 | I14: 20
A15: Michelle | B15: 189 | D15: Craig | E15: 15 | I15: 15
A16: Jason | B16: 122 | D16: Sarah | E16: 10 | I16: 10
A17: Craig | B17: 196 | D17: Mansa | E17: 12 | I17: 12
A18: Sarah | B18: 161 | D18: Shari | E18: 9 | I18: 9
A19: Mansa | B19: 197 | D19: Christina | E19: 21 | I19: 21
A20: Michelle | B20: 113 | D20: Carol | E20: 16 | I20: 16
A21: Shari | B21: 111 | D21: Kaur | E21: 21 | I21: 21
A22: Richard | B22: 164 | D22: Mitchell | E22: 10 | I22: 10
A23: Christina | B23: 167 | D23: Debra | E23: 18 | I23: 18
A24: Denise | B24: 129 | D24: Manavbir | E24: 21 | I24: 21
A25: Richard | B25: 122 | D25: Daniel | E25: 15 | I25: 15
A26: Thongtara | B26: 132 | D26: Yla-Katrina | E26: 17 | I26: 17
A27: Michelle | B27: 178 | D27: Nelia | E27: 13 | I27: 13
A28: Michelle | B28: 199
A29: Shari | B29: 181
A30: Carol | B30: 110
A31: Kaur | B31: 104
A32: Mitchell | B32: 110
A33: Debra | B33: 185
A34: Manavbir | B34: 183
A35: Sykes | B35: 143
A36: Elain | B36: 120
A37: Michelle | B37: 147
A38: Jason | B38: 117
A39: Mansa | B39: 128
A40: Shari | B40: 110
A41: Kaur | B41: 158
A42: Manavbir | B42: 133
A43: Debra | B43: 190
A44: Sarah | B44: 138
A45: Daniel | B45: 143
A46: Manavbir | B46: 167
A47: Thongtara | B47: 135
A48: Carol | B48: 125
A49: Janita | B49: 107
A50: Carol | B50: 162
A51: Thongtara | B51: 192
A52: Daniel | B52: 152
A53: Gianna | B53: 155
A54: Kaur | B54: 155
A55: Mansa | B55: 145
A56: Janita | B56: 149
A57: Kaur | B57: 180
A58: Yla-Katrina | B58: 190
A59: Richard | B59: 127
A60: Christina | B60: 114
A61: Carol | B61: 191
A62: Sykes | B62: 197
A63: Sykes | B63: 186
A64: Gianna | B64: 174
A65: Yla-Katrina | B65: 114
A66: Jason | B66: 121
A67: Debra | B67: 134
A68: Carol | B68: 174
A69: Craig | B69: 178
A70: Ewelina | B70: 132
A71: Sarah | B71: 148
A72: Michelle | B72: 120
A73: Thongtara | B73: 199
A74: Michelle | B74: 109
A75: Gianna | B75: 138
A76: Thongtara | B76: 153
A77: Janita | B77: 122
A78: Michael | B78: 154
A79: Jason | B79: 174
A80: Denise | B80: 181
A81: Sarah | B81: 113
A82: Nelia | B82: 177
A83: Mitchell | B83: 138
A84: Denise | B84: 175
A85: Ewelina | B85: 149
A86: Shari | B86: 140
A87: Michelle | B87: 152
A88: Jason | B88: 104
A89: Daniel | B89: 116
A90: Sykes | B90: 131
A91: Thongtara | B91: 135
A92: Michelle | B92: 164
A93: Manavbir | B93: 178
A94: Debra | B94: 139
A95: Carol | B95: 160
A96: Ewelina | B96: 162
A97: Shari | B97: 103
A98: Kaur | B98: 200
A99: Mansa | B99: 132
A100: Sarah | B100: 133
A101: Mansa | B101: 187
A102: Michael | B102: 173
A103: Sykes | B103: 112
A104: Daniel | B104: 132
A105: Sykes | B105: 112
A106: Daniel | B106: 131
A107: Craig | B107: 175
A108: Craig | B108: 158
A109: Ewelina | B109: 148
A110: Daniel | B110: 187
A111: Mansa | B111: 168
A112: Nelia | B112: 116
A113: Jason | B113: 122
A114: Debra | B114: 160
A115: Debra | B115: 192
A116: Christina | B116: 154
A117: Jason | B117: 145
A118: Richard | B118: 178
A119: Sarah | B119: 112
A120: Elain | B120: 115
A121: Mansa | B121: 146
A122: Debra | B122: 109
A123: Denise | B123: 172
A124: Daniel | B124: 146
A125: Richard | B125: 144
A126: Mitchell | B126: 146
A127: Kaur | B127: 105
A128: Ewelina | B128: 134
A129: Richard | B129: 118
A130: Debra | B130: 132
A131: Carol | B131: 117
A132: Michelle | B132: 194
A133: Debra | B133: 122
A134: Michelle | B134: 134
A135: Sykes | B135: 134
A136: Elain | B136: 125
A137: Carol | B137: 115
A138: Christina | B138: 105
A139: Christina | B139: 179
A140: Elain | B140: 114
A141: Elain | B141: 176
A142: Shari | B142: 194
A143: Mitchell | B143: 170
A144: Ewelina | B144: 144
A145: Christina | B145: 175
A146: Michelle | B146: 185
A147: Carol | B147: 133
A148: Sarah | B148: 131
A149: Mansa | B149: 163
A150: Denise | B150: 120
A151: Manavbir | B151: 136
A152: Gianna | B152: 195
A153: Yla-Katrina | B153: 157
A154: Michelle | B154: 187
A155: Christina | B155: 185
A156: Jason | B156: 154
A157: Jason | B157: 187
A158: Gianna | B158: 142
A159: Denise | B159: 132
A160: Mitchell | B160: 127
A161: Mansa | B161: 184
A162: Thongtara | B162: 164
A163: Sykes | B163: 157
A164: Craig | B164: 186
A165: Elain | B165: 135
A166: Janita | B166: 194
A167: Thongtara | B167: 177
A168: Mitchell | B168: 143
A169: Manavbir | B169: 152
A170: Nelia | B170: 101
A171: Janita | B171: 110
A172: Denise | B172: 124
A173: Christina | B173: 102
A174: Richard | B174: 139
A175: Janita | B175: 152
A176: Janita | B176: 168
A177: Michael | B177: 151
A178: Gianna | B178: 137
A179: Janita | B179: 104
A180: Nelia | B180: 139
A181: Daniel | B181: 147
A182: Mansa | B182: 190
A183: Nelia | B183: 159
A184: Manavbir | B184: 112
A185: Christina | B185: 182
A186: Richard | B186: 121
A187: Kaur | B187: 181
A188: Craig | B188: 104
A189: Sykes | B189: 194
A190: Christina | B190: 178
A191: Carol | B191: 142
A192: Mitchell | B192: 191
A193: Sarah | B193: 120
A194: Carol | B194: 155
A195: Manavbir | B195: 199
A196: Thongtara | B196: 106
A197: Elain | B197: 149
A198: Michelle | B198: 158
A199: Gianna | B199: 144
A200: Daniel | B200: 143
A201: Daniel | B201: 177
... 569 more rows

Sheet P(5)
A1: Create a small budget table (sales and expenses) with an assumption area and then save 3 scenarios. Make something up.
B3: Jan | C3: Feb | D3: Mar | E3: Apr | F3: May | G3: Jun
A4: Sales | B4: 100 | C4: 200 | D4: 300 | E4: 400 | F4: 500 | G4: 600
A5: Ex1
A6: Ex2
A7: Ex3
A8: Ex4
A9: Ex5
A10: Ex6
A11: Ex7
A12: Ex8
A13: Ex9
A14: Ex10
A15: Ex11
A16: Total Ex
A17: Net Income
A19: Assumptions
A20: Ex1 | B20: 0.03
A21: Ex2 | B21: 0.04
A22: Ex3 | B22: 0.05
A23: Ex4 | B23: 0.06
A24: Ex5 | B24: 0.07
A25: Ex6 | B25: 0.08
A26: Ex7 | B26: 0.09
A27: Ex8 | B27: 0.1
A28: Ex9 | B28: 0.11
A29: Ex10 | B29: 0.12
A30: Ex11 | B30: 0.13

Sheet P(5an) (hidden)
A1: Create a small budget table (sales and expenses) with an assumption area and then save 3 scenarios. Make something up.
B3: Jan | C3: Feb | D3: Mar | E3: Apr | F3: May | G3: Jun
A4: Sales | B4: 100 | C4: 200 | D4: 300 | E4: 400 | F4: 500 | G4: 600
A5: Ex1 | B5: =B$4*$B20 -> 0.5 | C5: =C$4*$B20 -> 1 | D5: =D$4*$B20 -> 1.5 | E5: =E$4*$B20 -> 2 | F5: =F$4*$B20 -> 2.5 | G5: =G$4*$B20 -> 3
A6: Ex2 | B6: =B$4*$B21 -> 1 | C6: =C$4*$B21 -> 2 | D6: =D$4*$B21 -> 3 | E6: =E$4*$B21 -> 4 | F6: =F$4*$B21 -> 5 | G6: =G$4*$B21 -> 6
A7: Ex3 | B7: =B$4*$B22 -> 1.5 | C7: =C$4*$B22 -> 3 | D7: =D$4*$B22 -> 4.5 | E7: =E$4*$B22 -> 6 | F7: =F$4*$B22 -> 7.5 | G7: =G$4*$B22 -> 9
A8: Ex4 | B8: =B$4*$B23 -> 2 | C8: =C$4*$B23 -> 4 | D8: =D$4*$B23 -> 6 | E8: =E$4*$B23 -> 8 | F8: =F$4*$B23 -> 10 | G8: =G$4*$B23 -> 12
A9: Ex5 | B9: =B$4*$B24 -> 2.5 | C9: =C$4*$B24 -> 5 | D9: =D$4*$B24 -> 7.5 | E9: =E$4*$B24 -> 10 | F9: =F$4*$B24 -> 12.5 | G9: =G$4*$B24 -> 15
A10: Ex6 | B10: =B$4*$B25 -> 3 | C10: =C$4*$B25 -> 6 | D10: =D$4*$B25 -> 9 | E10: =E$4*$B25 -> 12 | F10: =F$4*$B25 -> 15 | G10: =G$4*$B25 -> 18
A11: Ex7 | B11: =B$4*$B26 -> 3.5 | C11: =C$4*$B26 -> 7 | D11: =D$4*$B26 -> 10.5 | E11: =E$4*$B26 -> 14 | F11: =F$4*$B26 -> 17.5 | G11: =G$4*$B26 -> 21
A12: Ex8 | B12: =B$4*$B27 -> 4 | C12: =C$4*$B27 -> 8 | D12: =D$4*$B27 -> 12 | E12: =E$4*$B27 -> 16 | F12: =F$4*$B27 -> 20 | G12: =G$4*$B27 -> 24
A13: Ex9 | B13: =B$4*$B28 -> 4.5 | C13: =C$4*$B28 -> 9 | D13: =D$4*$B28 -> 13.5 | E13: =E$4*$B28 -> 18 | F13: =F$4*$B28 -> 22.5 | G13: =G$4*$B28 -> 27
A14: Ex10 | B14: =B$4*$B29 -> 5 | C14: =C$4*$B29 -> 10 | D14: =D$4*$B29 -> 15 | E14: =E$4*$B29 -> 20 | F14: =F$4*$B29 -> 25 | G14: =G$4*$B29 -> 30
A15: Ex11 | B15: =B$4*$B30 -> 5.5 | C15: =C$4*$B30 -> 11 | D15: =D$4*$B30 -> 16.5 | E15: =E$4*$B30 -> 22 | F15: =F$4*$B30 -> 27.5 | G15: =G$4*$B30 -> 33
A16: Total Ex | B16: =SUM(B5:B15) -> 33 | C16: 66 | D16: 99 | E16: 132 | F16: 165 | G16: 198
A17: Net Income | B17: =B4-B16 -> 67 | C17: 134 | D17: 201 | E17: 268 | F17: 335 | G17: 402
A19: Assumptions
A20: Ex1 | B20: 0.005
A21: Ex2 | B21: 0.01
A22: Ex3 | B22: 0.015
A23: Ex4 | B23: 0.02
A24: Ex5 | B24: 0.025
A25: Ex6 | B25: 0.03
A26: Ex7 | B26: 0.035
A27: Ex8 | B27: 0.04
A28: Ex9 | B28: 0.045
A29: Ex10 | B29: 0.05
A30: Ex11 | B30: 0.055
